[Event "Early-Titled-Tuesday-Blitz-February-27-2024"]
[Site "Chess.com"]
[Date "2024.02.27"]
[Round "6"]
[White "Zampronha1971"]
[Black "HajiyevKanan"]
[Result "0-1"]
[WhiteElo "2353"]
[BlackElo "2531"]
[TimeControl "180+1"]
[EndTime "9:02:14 PST"]
[Termination "HajiyevKanan won by resignation"]

1. e4 {[%clk 0:03:00.9]} 1... c6 {[%clk 0:02:59.5]} 2. d4 {[%clk 0:03:00.1]}
2... d5 {[%clk 0:03:00.4]} 3. e5 {[%clk 0:02:58.1]} 3... a6 {[%clk 0:03:00.8]}
4. Nf3 {[%clk 0:02:55.1]} 4... Bg4 {[%clk 0:03:00.5]} 5. c4 {[%clk 0:02:55.2]}
5... e6 {[%clk 0:03:00.7]} 6. Nc3 {[%clk 0:02:54.3]} 6... Nd7 {[%clk 0:03:00]}
7. Bd3 {[%clk 0:02:52.4]} 7... Ne7 {[%clk 0:02:57]} 8. O-O {[%clk 0:02:51.7]}
8... dxc4 {[%clk 0:02:54.5]} 9. Bxc4 {[%clk 0:02:51.1]} 9... Nb6 {[%clk
0:02:55.4]} 10. Be2 {[%clk 0:02:50.7]} 10... Nf5 {[%clk 0:02:53.1]} 11. Be3
{[%clk 0:02:45.9]} 11... Bxf3 {[%clk 0:02:44.4]} 12. Bxf3 {[%clk 0:02:43.2]}
12... Nc4 {[%clk 0:02:44.8]} 13. Qe2 {[%clk 0:02:37.7]} 13... Ncxe3 {[%clk
0:02:30.3]} 14. fxe3 {[%clk 0:02:38.6]} 14... Qg5 {[%clk 0:02:23.9]} 15. Rae1
{[%clk 0:02:35]} 15... Bb4 {[%clk 0:02:23.4]} 16. Be4 {[%clk 0:02:31.7]} 16...
g6 {[%clk 0:02:15.5]} 17. Bxf5 {[%clk 0:02:24.1]} 17... gxf5 {[%clk 0:02:15.4]}
18. e4 {[%clk 0:02:15.9]} 18... Bxc3 {[%clk 0:02:09.1]} 19. bxc3 {[%clk
0:02:14.5]} 19... fxe4 {[%clk 0:02:07.7]} 20. Qxe4 {[%clk 0:02:13.7]} 20... Rg8
{[%clk 0:01:56.7]} 21. Rf2 {[%clk 0:02:06.3]} 21... h5 {[%clk 0:01:55.1]} 22.
Ref1 {[%clk 0:02:04.6]} 22... Rg7 {[%clk 0:01:47.1]} 23. Rf6 {[%clk 0:01:46.7]}
23... O-O-O {[%clk 0:01:32.9]} 24. Qf3 {[%clk 0:01:40.8]} 24... Rdg8 {[%clk
0:01:29.5]} 25. Rxf7 {[%clk 0:01:05.3]} 25... Rxf7 {[%clk 0:01:25.2]} 0-1

[Event "Early-Titled-Tuesday-Blitz-February-27-2024"]
[Site "Chess.com"]
[Date "2024.02.27"]
[Round "6"]
[White "joksijoksi"]
[Black "GodzillaChessYoutube"]
[Result "0-1"]
[WhiteElo "2494"]
[BlackElo "2677"]
[TimeControl "180+1"]
[EndTime "9:02:16 PST"]
[Termination "GodzillaChessYoutube won by resignation"]

1. e4 {[%clk 0:03:00.9]} 1... c5 {[%clk 0:02:58.2]} 2. Nf3 {[%clk 0:02:52.9]}
2... e6 {[%clk 0:02:58.4]} 3. d4 {[%clk 0:02:52.4]} 3... cxd4 {[%clk 0:02:58.2]}
4. Nxd4 {[%clk 0:02:52.9]} 4... a6 {[%clk 0:02:58.8]} 5. Nc3 {[%clk 0:02:50.5]}
5... Qc7 {[%clk 0:02:58.8]} 6. Be3 {[%clk 0:02:49.9]} 6... Nf6 {[%clk
0:02:56.5]} 7. Be2 {[%clk 0:02:46.7]} 7... Bb4 {[%clk 0:02:49.4]} 8. Qd3 {[%clk
0:02:37]} 8... d5 {[%clk 0:02:41.1]} 9. exd5 {[%clk 0:02:34.1]} 9... Nxd5 {[%clk
0:02:37]} 10. O-O {[%clk 0:02:34]} 10... Nxe3 {[%clk 0:02:21.2]} 11. Qxe3 {[%clk
0:02:18.4]} 11... Nc6 {[%clk 0:02:07.8]} 12. Nf5 {[%clk 0:02:15.4]} 12... O-O
{[%clk 0:01:45]} 13. Nxg7 {[%clk 0:02:14.9]} 13... Qe5 {[%clk 0:01:38.4]} 14.
Qxe5 {[%clk 0:02:05.7]} 14... Nxe5 {[%clk 0:01:39.3]} 15. Nh5 {[%clk 0:02:06.3]}
15... f5 {[%clk 0:01:36.8]} 16. f4 {[%clk 0:02:03.5]} 16... Ng6 {[%clk
0:01:15.6]} 17. Bc4 {[%clk 0:01:49.9]} 17... b5 {[%clk 0:01:09.3]} 18. Bb3
{[%clk 0:01:47.8]} 18... Kf7 {[%clk 0:01:06.6]} 19. a4 {[%clk 0:01:41.2]} 19...
Bc5+ {[%clk 0:01:05.2]} 20. Kh1 {[%clk 0:01:40.7]} 20... b4 {[%clk 0:01:05.7]}
21. Ne2 {[%clk 0:01:37.2]} 21... Bb7 {[%clk 0:01:04.9]} 22. Nc1 {[%clk
0:01:35.3]} 22... Nh4 {[%clk 0:01:01.6]} 23. Rf3 {[%clk 0:01:18]} 23... Nxf3
{[%clk 0:01:00.1]} 0-1

[Event "Early-Titled-Tuesday-Blitz-February-27-2024"]
[Site "Chess.com"]
[Date "2024.02.27"]
[Round "6"]
[White "Fighter008"]
[Black "FontVella8"]
[Result "0-1"]
[WhiteElo "2532"]
[BlackElo "2711"]
[TimeControl "180+1"]
[EndTime "9:02:21 PST"]
[Termination "FontVella8 won by resignation"]

1. e4 {[%clk 0:03:00.9]} 1... c6 {[%clk 0:02:58.5]} 2. Nc3 {[%clk 0:02:59.7]}
2... d5 {[%clk 0:02:59.4]} 3. Nf3 {[%clk 0:02:58.2]} 3... dxe4 {[%clk
0:02:59.6]} 4. Nxe4 {[%clk 0:02:58.5]} 4... Nf6 {[%clk 0:03:00.5]} 5. Qe2 {[%clk
0:02:57.4]} 5... Nxe4 {[%clk 0:03:00.5]} 6. Qxe4 {[%clk 0:02:58.3]} 6... Qa5
{[%clk 0:03:00.8]} 7. Bc4 {[%clk 0:02:57.4]} 7... Bf5 {[%clk 0:03:00.2]} 8. Qe2
{[%clk 0:02:49.3]} 8... Nd7 {[%clk 0:02:58.6]} 9. Bb3 {[%clk 0:02:46.1]} 9... e6
{[%clk 0:02:53]} 10. O-O {[%clk 0:02:45.6]} 10... Be7 {[%clk 0:02:46.8]} 11. h3
{[%clk 0:02:45.5]} 11... O-O {[%clk 0:02:46.5]} 12. d4 {[%clk 0:02:45.6]} 12...
Qc7 {[%clk 0:02:43.9]} 13. c3 {[%clk 0:02:44.8]} 13... Rad8 {[%clk 0:02:42.3]}
14. a4 {[%clk 0:02:44.8]} 14... Rfe8 {[%clk 0:02:41.6]} 15. Re1 {[%clk
0:02:44.3]} 15... h6 {[%clk 0:02:39.2]} 16. a5 {[%clk 0:02:44.1]} 16... a6
{[%clk 0:02:36.5]} 17. Bc2 {[%clk 0:02:38.1]} 17... Bxc2 {[%clk 0:02:34.7]} 18.
Qxc2 {[%clk 0:02:39]} 18... c5 {[%clk 0:02:35.3]} 19. Be3 {[%clk 0:02:37.9]}
19... Nf6 {[%clk 0:02:31.7]} 20. c4 {[%clk 0:02:34.1]} 20... cxd4 {[%clk
0:02:30.6]} 21. Bxd4 {[%clk 0:02:33.2]} 21... Bb4 {[%clk 0:02:24.7]} 22. Bxf6
{[%clk 0:02:29.7]} 22... gxf6 {[%clk 0:02:23.2]} 23. Re2 {[%clk 0:02:27.2]}
23... Rc8 {[%clk 0:02:15.9]} 24. b3 {[%clk 0:02:26.7]} 24... Bxa5 {[%clk
0:02:09.6]} 25. Qe4 {[%clk 0:02:26.1]} 25... f5 {[%clk 0:02:02]} 26. Qh4 {[%clk
0:02:25.2]} 26... Bc3 {[%clk 0:02:00.1]} 27. Rd1 {[%clk 0:02:21.7]} 27... Bg7
{[%clk 0:01:59.8]} 28. Rde1 {[%clk 0:02:14.7]} 28... b5 {[%clk 0:01:59.4]} 29.
cxb5 {[%clk 0:02:13.2]} 29... axb5 {[%clk 0:02:00.3]} 30. Ne5 {[%clk 0:02:13.5]}
30... Qc3 {[%clk 0:01:51.3]} 31. Re3 {[%clk 0:02:08.1]} 31... Qb2 {[%clk
0:01:36.7]} 32. Rg3 {[%clk 0:01:56.4]} 32... Rc1 {[%clk 0:00:57.6]} 33. Qf6
{[%clk 0:01:52.3]} 33... Rxe1+ {[%clk 0:00:57.4]} 34. Kh2 {[%clk 0:01:52.1]}
34... Qxe5 {[%clk 0:00:58]} 0-1

[Event "Early-Titled-Tuesday-Blitz-February-27-2024"]
[Site "Chess.com"]
[Date "2024.02.27"]
[Round "6"]
[White "GrotBchess"]
[Black "Viacheslav92"]
[Result "1/2-1/2"]
[WhiteElo "2388"]
[BlackElo "2545"]
[TimeControl "180+1"]
[EndTime "9:02:22 PST"]
[Termination "Game drawn by repetition"]

1. e4 {[%clk 0:03:00.9]} 1... e5 {[%clk 0:02:58.2]} 2. Nf3 {[%clk 0:03:00.6]}
2... Nc6 {[%clk 0:02:58.9]} 3. Bb5 {[%clk 0:03:00.4]} 3... a6 {[%clk 0:02:58.9]}
4. Ba4 {[%clk 0:02:59.9]} 4... Nf6 {[%clk 0:02:59.5]} 5. O-O {[%clk 0:02:59.7]}
5... b5 {[%clk 0:03:00]} 6. Bb3 {[%clk 0:02:59.3]} 6... Bc5 {[%clk 0:03:00.9]}
7. c3 {[%clk 0:02:59]} 7... d6 {[%clk 0:03:01]} 8. Re1 {[%clk 0:02:57.9]} 8...
O-O {[%clk 0:03:00.2]} 9. d4 {[%clk 0:02:56.7]} 9... Bb6 {[%clk 0:03:00.2]} 10.
a4 {[%clk 0:02:53.6]} 10... Rb8 {[%clk 0:02:59.9]} 11. a5 {[%clk 0:02:48.7]}
11... Ba7 {[%clk 0:02:59.5]} 12. dxe5 {[%clk 0:02:41.8]} 12... Nxe5 {[%clk
0:02:59]} 13. Nxe5 {[%clk 0:02:38.4]} 13... dxe5 {[%clk 0:02:59.9]} 14. Nd2
{[%clk 0:02:37.2]} 14... Ng4 {[%clk 0:02:55.2]} 15. Rf1 {[%clk 0:02:26.2]} 15...
Qh4 {[%clk 0:02:49.5]} 16. Nf3 {[%clk 0:02:13]} 16... Nxf2 {[%clk 0:02:47.3]}
17. Qd4 {[%clk 0:01:46.4]} 17... Nh3+ {[%clk 0:02:22.7]} 18. Kh1 {[%clk
0:01:31.3]} 18... Nf2+ {[%clk 0:01:57.7]} 19. Kg1 {[%clk 0:01:22.8]} 19... Bxd4
{[%clk 0:01:18.1]} 20. Nxh4 {[%clk 0:01:21.1]} 20... Nh3+ {[%clk 0:01:17.8]} 21.
Kh1 {[%clk 0:01:19.7]} 21... Nf2+ {[%clk 0:01:16]} 22. Kg1 {[%clk 0:01:19.5]}
22... Nh3+ {[%clk 0:01:14.8]} 23. Kh1 {[%clk 0:01:19.5]} 23... Nf2+ {[%clk
0:00:50.7]} 24. Kg1 {[%clk 0:01:18.8]} 1/2-1/2

[Event "Early-Titled-Tuesday-Blitz-February-27-2024"]
[Site "Chess.com"]
[Date "2024.02.27"]
[Round "6"]
[White "arnash_bauyrzhan"]
[Black "Chess4always"]
[Result "1-0"]
[WhiteElo "2300"]
[BlackElo "1970"]
[TimeControl "180+1"]
[EndTime "9:02:22 PST"]
[Termination "arnash_bauyrzhan won by resignation"]

1. e4 {[%clk 0:03:00.9]} 1... c6 {[%clk 0:02:59.9]} 2. d4 {[%clk 0:03:00.3]}
2... d5 {[%clk 0:03:00.6]} 3. Nd2 {[%clk 0:03:00.2]} 3... dxe4 {[%clk
0:03:00.6]} 4. Nxe4 {[%clk 0:03:00.3]} 4... Nf6 {[%clk 0:03:01.3]} 5. Nxf6+
{[%clk 0:02:59.9]} 5... gxf6 {[%clk 0:03:02.2]} 6. c3 {[%clk 0:02:58]} 6... Bf5
{[%clk 0:03:02.6]} 7. Nf3 {[%clk 0:02:55.9]} 7... Nd7 {[%clk 0:03:02]} 8. g3
{[%clk 0:02:55.9]} 8... Be4 {[%clk 0:03:00.1]} 9. Bg2 {[%clk 0:02:55.9]} 9... e6
{[%clk 0:03:00.6]} 10. O-O {[%clk 0:02:55.6]} 10... Nb6 {[%clk 0:03:00.7]} 11.
Re1 {[%clk 0:02:47.2]} 11... f5 {[%clk 0:03:00.7]} 12. a4 {[%clk 0:02:42.6]}
12... a5 {[%clk 0:02:56.5]} 13. Ne5 {[%clk 0:01:53.1]} 13... Bxg2 {[%clk
0:02:51.3]} 14. Kxg2 {[%clk 0:01:53.4]} 14... Bd6 {[%clk 0:02:43.7]} 15. Qh5
{[%clk 0:01:47.4]} 15... Bxe5 {[%clk 0:02:38]} 16. Rxe5 {[%clk 0:01:46.6]} 16...
Nc4 {[%clk 0:02:28.1]} 17. Rxe6+ {[%clk 0:01:39.7]} 17... Kd7 {[%clk 0:02:22.6]}
18. Qxf7+ {[%clk 0:01:38.1]} 18... Kc8 {[%clk 0:02:22.7]} 19. Re7 {[%clk
0:01:17.4]} 19... Rf8 {[%clk 0:02:14.4]} 20. Qe6+ {[%clk 0:01:16.8]} 20... Kb8
{[%clk 0:02:13]} 21. Bf4+ {[%clk 0:01:09.2]} 21... Ka7 {[%clk 0:02:12.1]} 22.
Rd7 {[%clk 0:01:05.4]} 22... Qe8 {[%clk 0:02:06.6]} 23. Qxc6 {[%clk 0:00:54.3]}
1-0

[Event "Early-Titled-Tuesday-Blitz-February-27-2024"]
[Site "Chess.com"]
[Date "2024.02.27"]
[Round "6"]
[White "WilsonPalencia21"]
[Black "francyIM"]
[Result "0-1"]
[WhiteElo "2559"]
[BlackElo "2783"]
[TimeControl "180+1"]
[EndTime "9:02:26 PST"]
[Termination "francyIM won by resignation"]

1. d4 {[%clk 0:02:52.7]} 1... Nf6 {[%clk 0:02:59.5]} 2. c4 {[%clk 0:02:52.5]}
2... g6 {[%clk 0:03:00.1]} 3. Nf3 {[%clk 0:02:52.9]} 3... Bg7 {[%clk 0:03:00.5]}
4. Nc3 {[%clk 0:02:53.8]} 4... O-O {[%clk 0:03:00.4]} 5. e4 {[%clk 0:02:53.4]}
5... d6 {[%clk 0:03:00.7]} 6. Be2 {[%clk 0:02:53.8]} 6... e5 {[%clk 0:03:01.3]}
7. O-O {[%clk 0:02:54.4]} 7... h6 {[%clk 0:03:01.7]} 8. d5 {[%clk 0:02:52.2]}
8... a5 {[%clk 0:02:58.4]} 9. Qc2 {[%clk 0:02:51.8]} 9... Nh7 {[%clk 0:02:58.2]}
10. Ne1 {[%clk 0:02:26.3]} 10... f5 {[%clk 0:02:57.2]} 11. f3 {[%clk 0:02:26.5]}
11... f4 {[%clk 0:02:57.1]} 12. Nd3 {[%clk 0:02:26.3]} 12... Na6 {[%clk
0:02:56.7]} 13. Bd2 {[%clk 0:02:21.6]} 13... Rf7 {[%clk 0:02:56.3]} 14. Be1
{[%clk 0:02:20.9]} 14... g5 {[%clk 0:02:55.4]} 15. a3 {[%clk 0:02:12.6]} 15...
Bf8 {[%clk 0:02:55.7]} 16. b4 {[%clk 0:02:11.3]} 16... axb4 {[%clk 0:02:56.6]}
17. axb4 {[%clk 0:02:11.3]} 17... Nxb4 {[%clk 0:02:55]} 18. Qb1 {[%clk
0:02:08.6]} 18... Rxa1 {[%clk 0:02:54.6]} 19. Qxa1 {[%clk 0:02:09.5]} 19... Na6
{[%clk 0:02:54.5]} 20. Nb5 {[%clk 0:02:07.6]} 20... Nf6 {[%clk 0:02:53.1]} 21.
g4 {[%clk 0:02:04.8]} 21... fxg3 {[%clk 0:02:52.5]} 22. hxg3 {[%clk 0:02:05]}
22... g4 {[%clk 0:02:47.4]} 23. fxg4 {[%clk 0:02:02.4]} 23... c6 {[%clk
0:02:44.5]} 24. Na7 {[%clk 0:01:56.9]} 24... Nxe4 {[%clk 0:02:36.9]} 25. Rxf7
{[%clk 0:01:56.5]} 25... Kxf7 {[%clk 0:02:37.8]} 26. Nxc8 {[%clk 0:01:56.3]}
26... Qxc8 {[%clk 0:02:38.7]} 27. Qb1 {[%clk 0:01:43.5]} 27... cxd5 {[%clk
0:02:36.8]} 28. cxd5 {[%clk 0:01:43.5]} 28... Nac5 {[%clk 0:02:36.9]} 29. Nxc5
{[%clk 0:01:42.4]} 29... Qxc5+ {[%clk 0:02:36.9]} 30. Kg2 {[%clk 0:01:40.5]}
30... Nf6 {[%clk 0:02:31.2]} 31. Qxb7+ {[%clk 0:01:38.4]} 31... Be7 {[%clk
0:02:31.2]} 32. Bf2 {[%clk 0:01:37.1]} 32... Qc2 {[%clk 0:02:30.2]} 33. Qb5
{[%clk 0:01:24.1]} 33... Qd2 {[%clk 0:02:24.5]} 34. Qd3 {[%clk 0:01:21.5]} 34...
Qxd3 {[%clk 0:02:23]} 35. Bxd3 {[%clk 0:01:21.5]} 35... e4 {[%clk 0:02:23]} 36.
Bc4 {[%clk 0:01:16.2]} 36... Nxg4 {[%clk 0:02:22.1]} 37. Bd4 {[%clk 0:01:14.8]}
37... Bf6 {[%clk 0:02:20.1]} 38. Be2 {[%clk 0:01:14.5]} 38... h5 {[%clk
0:02:19.4]} 39. Bxg4 {[%clk 0:01:08.5]} 39... hxg4 {[%clk 0:02:20.3]} 40. Bb6
{[%clk 0:01:08.4]} 40... Kg6 {[%clk 0:02:20.4]} 41. Kf2 {[%clk 0:01:08.8]} 41...
Kf5 {[%clk 0:02:20.3]} 42. Ke3 {[%clk 0:01:07.7]} 42... Be5 {[%clk 0:02:14.1]}
43. Kf2 {[%clk 0:01:06.4]} 43... Bb2 {[%clk 0:02:14.3]} 44. Ke3 {[%clk
0:00:58.4]} 44... Ke5 {[%clk 0:02:14.7]} 45. Ba5 {[%clk 0:00:51.9]} 45... Bc1+
{[%clk 0:02:13.5]} 46. Ke2 {[%clk 0:00:51.6]} 46... Kxd5 {[%clk 0:02:13.2]} 0-1

[Event "Early-Titled-Tuesday-Blitz-February-27-2024"]
[Site "Chess.com"]
[Date "2024.02.27"]
[Round "6"]
[White "Makswolf200817"]
[Black "aistrel"]
[Result "1-0"]
[WhiteElo "2730"]
[BlackElo "2542"]
[TimeControl "180+1"]
[EndTime "9:02:28 PST"]
[Termination "Makswolf200817 won by resignation"]

1. d4 {[%clk 0:03:00.1]} 1... d5 {[%clk 0:02:59.6]} 2. c4 {[%clk 0:02:52]} 2...
e6 {[%clk 0:02:59.9]} 3. Nf3 {[%clk 0:02:50.9]} 3... c6 {[%clk 0:02:59.8]} 4. g3
{[%clk 0:02:50.8]} 4... dxc4 {[%clk 0:02:59]} 5. Bg2 {[%clk 0:02:51]} 5... Nd7
{[%clk 0:02:58]} 6. O-O {[%clk 0:02:49.5]} 6... b5 {[%clk 0:02:58.5]} 7. e4
{[%clk 0:02:49.4]} 7... Bb7 {[%clk 0:02:58.4]} 8. Nc3 {[%clk 0:02:46]} 8... Ngf6
{[%clk 0:02:58.4]} 9. e5 {[%clk 0:02:36.7]} 9... Nd5 {[%clk 0:02:58.1]} 10. Bg5
{[%clk 0:02:37.2]} 10... Qc7 {[%clk 0:02:56.6]} 11. Ne4 {[%clk 0:02:36.3]} 11...
h6 {[%clk 0:02:56.9]} 12. Bd2 {[%clk 0:02:25.7]} 12... c5 {[%clk 0:02:57.2]} 13.
a4 {[%clk 0:02:17.8]} 13... b4 {[%clk 0:02:40]} 14. dxc5 {[%clk 0:02:13.1]}
14... Nxc5 {[%clk 0:02:40.9]} 15. Nd6+ {[%clk 0:02:07.9]} 15... Bxd6 {[%clk
0:02:36.2]} 16. exd6 {[%clk 0:02:08.8]} 16... Qxd6 {[%clk 0:02:37]} 17. Bxb4
{[%clk 0:02:09]} 17... Rd8 {[%clk 0:02:22.8]} 18. Ba3 {[%clk 0:02:00.2]} 18...
Qc7 {[%clk 0:01:47.9]} 19. Qd4 {[%clk 0:01:47.7]} 19... Nb3 {[%clk 0:01:06]} 20.
Qxg7 {[%clk 0:01:45.9]} 20... Nxa1 {[%clk 0:01:06.9]} 21. Ne5 {[%clk 0:01:26.5]}
1-0

[Event "Early-Titled-Tuesday-Blitz-February-27-2024"]
[Site "Chess.com"]
[Date "2024.02.27"]
[Round "6"]
[White "DuleMudule"]
[Black "janhelmer03"]
[Result "1-0"]
[WhiteElo "2856"]
[BlackElo "2374"]
[TimeControl "180+1"]
[EndTime "9:02:29 PST"]
[Termination "DuleMudule won by resignation"]

1. d4 {[%clk 0:03:00.9]} 1... d5 {[%clk 0:02:53.4]} 2. Bf4 {[%clk 0:02:59.8]}
2... c5 {[%clk 0:02:50.7]} 3. e3 {[%clk 0:03:00.2]} 3... Nc6 {[%clk 0:02:43.6]}
4. Nc3 {[%clk 0:03:00.1]} 4... cxd4 {[%clk 0:02:41.4]} 5. exd4 {[%clk 0:03:00]}
5... Nf6 {[%clk 0:02:42.1]} 6. Nb5 {[%clk 0:02:58.9]} 6... e5 {[%clk 0:02:32.8]}
7. dxe5 {[%clk 0:02:58.7]} 7... Ne4 {[%clk 0:02:23.2]} 8. Qxd5 {[%clk
0:02:57.9]} 8... Qxd5 {[%clk 0:02:19.6]} 9. Nc7+ {[%clk 0:02:56.9]} 9... Kd8
{[%clk 0:02:20.5]} 10. Nxd5 {[%clk 0:02:57.5]} 10... Be6 {[%clk 0:02:17.3]} 11.
Rd1 {[%clk 0:02:56]} 11... Kc8 {[%clk 0:02:12.9]} 12. f3 {[%clk 0:02:54.2]}
12... Nc5 {[%clk 0:02:07.6]} 13. a3 {[%clk 0:02:50]} 13... Nd7 {[%clk
0:02:05.7]} 14. Ne2 {[%clk 0:02:24.6]} 14... Ndxe5 {[%clk 0:01:45.3]} 15. Be3
{[%clk 0:02:24.4]} 15... Nc4 {[%clk 0:01:41.8]} 16. Bc1 {[%clk 0:02:22]} 16...
Bc5 {[%clk 0:01:40.4]} 17. b4 {[%clk 0:02:20]} 17... Bf8 {[%clk 0:01:22.8]} 18.
Nef4 {[%clk 0:02:19.5]} 18... Bxd5 {[%clk 0:01:04.2]} 19. Nxd5 {[%clk
0:02:15.7]} 19... N4e5 {[%clk 0:00:47.8]} 20. f4 {[%clk 0:02:13]} 20... Ng6
{[%clk 0:00:45.7]} 21. g3 {[%clk 0:02:12.1]} 21... Bd6 {[%clk 0:00:44.1]} 22.
Bh3+ {[%clk 0:02:10.7]} 22... Kb8 {[%clk 0:00:43.1]} 23. O-O {[%clk 0:02:10.2]}
23... Nge7 {[%clk 0:00:37.6]} 24. Nf6 {[%clk 0:02:04.6]} 24... Kc7 {[%clk
0:00:26.2]} 25. Ne4 {[%clk 0:02:01.1]} 25... Rad8 {[%clk 0:00:25]} 26. c4 {[%clk
0:01:58.5]} 26... Nc8 {[%clk 0:00:16]} 27. Bxc8 {[%clk 0:01:55.5]} 1-0

[Event "Early-Titled-Tuesday-Blitz-February-27-2024"]
[Site "Chess.com"]
[Date "2024.02.27"]
[Round "6"]
[White "Caroexpert"]
[Black "KacperKacprzak"]
[Result "0-1"]
[WhiteElo "2525"]
[BlackElo "2705"]
[TimeControl "180+1"]
[EndTime "9:02:38 PST"]
[Termination "KacperKacprzak won by resignation"]

1. Nf3 {[%clk 0:02:53.1]} 1... c5 {[%clk 0:02:59.3]} 2. c4 {[%clk 0:02:49.5]}
2... Nc6 {[%clk 0:02:58.6]} 3. Nc3 {[%clk 0:02:47.4]} 3... g6 {[%clk 0:02:55.4]}
4. g3 {[%clk 0:02:40.2]} 4... Bg7 {[%clk 0:02:55.2]} 5. Bg2 {[%clk 0:02:40.8]}
5... e6 {[%clk 0:02:55.9]} 6. O-O {[%clk 0:02:41.3]} 6... Nge7 {[%clk
0:02:56.5]} 7. e3 {[%clk 0:02:39.7]} 7... O-O {[%clk 0:02:53.5]} 8. d3 {[%clk
0:02:33.5]} 8... d5 {[%clk 0:02:50.7]} 9. cxd5 {[%clk 0:02:32.1]} 9... exd5
{[%clk 0:02:51.6]} 10. Bd2 {[%clk 0:02:32.4]} 10... b6 {[%clk 0:02:50.5]} 11.
Rc1 {[%clk 0:02:32.2]} 11... Ba6 {[%clk 0:02:48]} 12. Ne1 {[%clk 0:02:30.5]}
12... Rc8 {[%clk 0:02:47]} 13. Qa4 {[%clk 0:02:18.9]} 13... Bb7 {[%clk
0:02:46.7]} 14. e4 {[%clk 0:01:49.8]} 14... dxe4 {[%clk 0:02:44.8]} 15. Nxe4
{[%clk 0:01:47.9]} 15... Nf5 {[%clk 0:02:40]} 16. Bc3 {[%clk 0:01:44.1]} 16...
Nfd4 {[%clk 0:02:36.7]} 17. Kh1 {[%clk 0:01:43.6]} 17... f5 {[%clk 0:02:00.1]}
18. Nd2 {[%clk 0:01:28.8]} 18... Qd7 {[%clk 0:02:00.3]} 19. Nef3 {[%clk
0:01:20.2]} 19... Rcd8 {[%clk 0:01:56.3]} 20. Rfe1 {[%clk 0:00:51.3]} 20... Kh8
{[%clk 0:01:54.4]} 21. Bxd4 {[%clk 0:00:29.2]} 21... Nxd4 {[%clk 0:01:55.3]} 22.
Qxa7 {[%clk 0:00:23.5]} 22... Bxf3 {[%clk 0:01:52.8]} 23. Qxd7 {[%clk
0:00:20.5]} 23... Bxg2+ {[%clk 0:01:53.2]} 24. Kxg2 {[%clk 0:00:21]} 24... Rxd7
{[%clk 0:01:54.1]} 25. Nc4 {[%clk 0:00:21.4]} 25... b5 {[%clk 0:01:48.3]} 26.
Nb6 {[%clk 0:00:20.1]} 26... Rd6 {[%clk 0:01:46.8]} 0-1

[Event "Early-Titled-Tuesday-Blitz-February-27-2024"]
[Site "Chess.com"]
[Date "2024.02.27"]
[Round "6"]
[White "giomar27"]
[Black "Klavdia_Nik"]
[Result "1-0"]
[WhiteElo "2415"]
[BlackElo "2125"]
[TimeControl "180+1"]
[EndTime "9:02:39 PST"]
[Termination "giomar27 won on time"]

1. f3 {[%clk 0:03:00.7]} 1... e5 {[%clk 0:02:49.8]} 2. g3 {[%clk 0:03:00.7]}
2... Nf6 {[%clk 0:02:46.2]} 3. Nh3 {[%clk 0:03:01.1]} 3... Be7 {[%clk
0:02:45.7]} 4. Nf2 {[%clk 0:03:01.7]} 4... O-O {[%clk 0:02:45.6]} 5. Bg2 {[%clk
0:03:02.4]} 5... d5 {[%clk 0:02:45.7]} 6. O-O {[%clk 0:03:03]} 6... c5 {[%clk
0:02:45.5]} 7. d3 {[%clk 0:03:03.6]} 7... Nc6 {[%clk 0:02:45.6]} 8. Nc3 {[%clk
0:03:03.9]} 8... Be6 {[%clk 0:02:45]} 9. e4 {[%clk 0:03:04.4]} 9... a6 {[%clk
0:02:43.2]} 10. a4 {[%clk 0:03:01.4]} 10... Qd7 {[%clk 0:02:22.1]} 11. Bg5
{[%clk 0:03:00]} 11... Nd4 {[%clk 0:01:59]} 12. f4 {[%clk 0:02:54.3]} 12... h6
{[%clk 0:01:38.5]} 13. Bxf6 {[%clk 0:02:52.2]} 13... Bxf6 {[%clk 0:01:34.4]} 14.
exd5 {[%clk 0:02:51.2]} 14... Bf5 {[%clk 0:01:26.3]} 15. g4 {[%clk 0:02:48.7]}
15... Bh7 {[%clk 0:00:57.6]} 16. Nfe4 {[%clk 0:02:47.2]} 16... Bxe4 {[%clk
0:00:53.2]} 17. dxe4 {[%clk 0:02:47.4]} 17... exf4 {[%clk 0:00:52.2]} 18. Rxf4
{[%clk 0:02:47.3]} 18... Be5 {[%clk 0:00:50.3]} 19. Rf1 {[%clk 0:02:47.4]} 19...
b5 {[%clk 0:00:47.1]} 20. axb5 {[%clk 0:02:46.8]} 20... axb5 {[%clk 0:00:48]}
21. Rxa8 {[%clk 0:02:47.2]} 21... Rxa8 {[%clk 0:00:47.4]} 22. h3 {[%clk
0:02:47.7]} 22... f6 {[%clk 0:00:32.6]} 23. Nb1 {[%clk 0:02:43.1]} 23... b4
{[%clk 0:00:29.2]} 24. c3 {[%clk 0:02:42.7]} 24... Nb5 {[%clk 0:00:21.6]} 25.
cxb4 {[%clk 0:02:39.2]} 25... cxb4 {[%clk 0:00:22.5]} 26. Qb3 {[%clk 0:02:39.7]}
26... Qa7+ {[%clk 0:00:17.1]} 27. Kh1 {[%clk 0:02:38.8]} 27... Qc5 {[%clk
0:00:14.7]} 28. Nd2 {[%clk 0:02:36.7]} 28... Rc8 {[%clk 0:00:12]} 29. Nf3 {[%clk
0:02:33.6]} 29... Bd6 {[%clk 0:00:11.7]} 30. Re1 {[%clk 0:02:24.9]} 30... Nd4
{[%clk 0:00:10.3]} 31. Qe3 {[%clk 0:02:23.6]} 31... Nxf3 {[%clk 0:00:08.7]} 32.
Qxf3 {[%clk 0:02:24.5]} 32... Qd4 {[%clk 0:00:06.3]} 33. Qf5 {[%clk 0:02:22.2]}
33... Rc2 {[%clk 0:00:03.6]} 34. e5 {[%clk 0:02:22.2]} 34... Bxe5 {[%clk
0:00:03.3]} 35. Qxc2 {[%clk 0:02:19.4]} 1-0